Cogmind - Beta 14 @@@ ROGUE MODE // 2024.11.12 @ 23:12:03 Player: mehbruh Result: Self-destructed Performance ------------- Evolutions (2) 1000 Regions Visited (5) 1000 Robots Destroyed (56) 280 Value Destroyed (1364) 1364 Prototype IDs (24) 480 Alien Tech Used (0) 0 Bonus (341) 341 TOTAL SCORE: 4465 Bonus ------- High Alert Combat Kills 41 Aligned with FarCom 300 Cogmind --------- Core Integrity 393/550 Matter 11/300 Energy 275/275 System Corruption 1% Temperature Cool (0) Movement Treading (232) Ox1 Location -8/Materials Parts ------- > --- POWER (1) -------- Deuterium Engine > --- PROPULSION (3) --- Light Treads Advanced Treads > --- UTILITY (4) ------ Improved Heat Sink Large Storage Unit Improved Medium Armor Plating Hacking Suite > --- WEAPON (3) ------- Plasma Cannon Heavy Assault Rifle Gauss Rifle > --- INVENTORY (15) --- Nuclear Core Compact Wheel Plasma Cannon Plasma Cannon Plasma Cannon XL Autogun Array Missile Launcher Missile Launcher Makeshift Sword Peak State ------------ > --- POWER ------------ Deuterium Engine > --- PROPULSION ------- Light Treads Light Treads Advanced Treads > --- UTILITY ---------- Improved Heat Sink Large Storage Unit Improved Medium Armor Plating Hacking Suite > --- WEAPON ----------- Plasma Cannon Plasma Cannon Missile Launcher > --- INVENTORY -------- Nuclear Core Light Treads Light Treads Compact Wheel Improved Medium Armor Plating Plasma Cannon Plasma Cannon Heavy Assault Rifle Autogun XL Autogun Array Missile Launcher Makeshift Sword [Rating: 36] Favorites ----------- Power Ion Engine Engine Ion Engine Propulsion Light Treads Treads Light Treads Utility Seismic Detector Device Seismic Detector Storage Large Storage Unit Hackware Hacking Suite Protection Improved Medium Armor Plating Weapon Beam Cannon Energy Gun Medium Laser Energy Cannon Beam Cannon Ballistic Gun Light Assault Rifle Launcher Grenade Launcher Slashing Weapon Makeshift Sword Build | -11 -10 -10 -10 -9 -8 ------- Run | Yrd Mat Min Exi Min Mat Slots Evolved 4 | . . . . . 4 Power . | . . . . . . Propulsion 1 | . . . . . 1 Utility 2 | . . . . . 2 Weapon 1 | . . . . . 1 Parts Attached 67 | 7 11 4 1 14 30 Power 6 | 1 1 . . 3 1 Engine 6 | 1 1 . . 3 1 Core . | . . . . . . Reactor . | . . . . . . Propulsion 17 | 2 5 . . 5 5 Treads 17 | 2 5 . . 5 5 Leg . | . . . . . . Wheel . | . . . . . . Hover . | . . . . . . Flight . | . . . . . . Utility 13 | 2 1 2 1 . 7 Device 5 | 1 . 2 . . 2 Storage 3 | 1 1 . 1 . . Processor . | . . . . . . Hackware 1 | . . . . . 1 Protection 4 | . . . . . 4 Artifact . | . . . . . . Weapon 31 | 2 4 2 . 6 17 Energy Gun 2 | 1 1 . . . . Energy Cannon 9 | . 1 1 . 3 4 Ballistic Gun 11 | 1 2 . . 1 7 Ballistic Cannon . | . . . . . . Launcher 8 | . . 1 . 2 5 Special Weapon . | . . . . . . Impact Weapon . | . . . . . . Slashing Weapon 1 | . . . . . 1 Piercing Weapon . | . . . . . . Special Melee Weapon . | . . . . . . Unidentified Prototypes 1 | . . 1 . . . Parts Lost 14 | . . . . 10 4 Power 2 | . . . . 2 . Propulsion 8 | . . . . 5 3 Utility 2 | . . . . 1 1 Weapon 2 | . . . . 2 . Highest Loss Streak 10 | . . . . 10 3 To Critical Strikes . | . . . . . . Average Slot Usage (%) 89 | . 99 100 71 83 91 Engine 11 | . 14 14 14 8 7 Treads 27 | . 28 28 28 27 26 Device 11 | . 14 14 14 7 7 Storage 12 | . 14 14 14 14 9 Hackware 2 | . . . . . 8 Protection 2 | . . . . . 7 Energy Gun 4 | . 13 . . . . Energy Cannon 7 | . . 14 . 14 16 Ballistic Gun 8 | . 13 14 . 6 7 Peak Build Rating 36 | 7 8 16 9 11 36 Average Rating 13 | 4 7 8 8 9 28 On Entrance 6 | . 7 8 8 9 9 Naked Turns . | . . . . . . Heaviest Build 57 | 14 20 20 26 32 57 Greatest Support 62 | 40 40 40 40 40 62 Greatest Overweight (x) 1 | . . . . 1 1 Average Overweight (x) . | . . . . . . Largest Inventory Capacity 15 | 8 10 10 15 15 15 Average Capacity 11 | 6 8 10 11 15 15 Most Carried 15 | 7 10 10 14 15 15 Average Carried 10 | 4 8 10 10 9 12 Final Capacity 15 | 8 10 10 15 15 15 Final Carried 14 | 6 10 10 14 6 12 Class Distribution -------------------- 77% | Mutant 18% | Skirmisher Dominant Class ---------------- Mutant | -10/Materials Mutant | -10/Mines Mutant | -10/Exiles Mutant | -9/Mines Skirmisher | -8/Materials Resources | -11 -10 -10 -10 -9 -8 ----------- Run | Yrd Mat Min Exi Min Mat Matter Collected 1046 | 217 178 40 . 192 419 Remotely 10 | . . . . . 10 Salvage Created 1470 | 23 327 48 . 82 990 Parts 99 | 3 17 5 . 12 62 Haulers Intercepted 3 | . 2 . . . 1 Recyclers Shooed 1 | . 1 . . . . Parts Field Recycled . | . . . . . . Retrieved Matter . | . . . . . . Parts Self-Destructed . | . . . . . . Prevented . | . . . . . . Kills | -11 -10 -10 -10 -9 -8 ------- Run | Yrd Mat Min Exi Min Mat Combat Hostiles Destroyed 52 | . 4 3 . 19 26 Guns 9 | . 4 . . 1 4 Cannons 14 | . . . . 2 12 AOE 28 | . . 3 . 16 9 Classes Destroyed 13 | 1 3 2 . 3 4 Worker 4 | . . 2 . . 2 Builder 4 | . . . . 1 3 Tunneler 1 | 1 . . . . . Hauler 3 | . 2 . . . 1 Recycler 1 | . 1 . . . . Mechanic 1 | . . . . . 1 Watcher 1 | . . . . . 1 Swarmer 18 | . . 3 . 7 8 Grunt 16 | . 4 . . . 12 Sentry 4 | . . . . . 4 Demolisher 1 | . . . . 1 . Specialist 2 | . . . . . 2 Assembled 11 | . . . . 11 . Best Kill Streak 11 | 1 1 3 . 11 11 Combat Bots Only 11 | . 1 3 . 11 7 Max Kills in Single Turn 6 | 1 1 3 . 6 3 Gunslinging . | . . . . . . Exploded 6 | . . 3 . 6 3 Melee . | . . . . . . Uniques/NPCs Destroyed . | . . . . . . Combat | -11 -10 -10 -10 -9 -8 -------- Run | Yrd Mat Min Exi Min Mat Hostile Shots Fired 188 | . 20 2 . 59 107 Missed 44 | . 4 1 . 12 27 Damage Taken 3081 | . 210 31 . 1119 1721 Core 343 | . 45 . . 141 157 Absorbed by Shields . | . . . . . . Core Remaining (%) 62 | 100 . . . 25 . Volleys Fired 114 | 1 29 1 . 13 70 Largest 3 | 2 2 1 . 2 3 Hottest 183 | 70 70 30 . 120 183 Shots Fired 249 | 2 58 1 . 18 170 Gun 124 | 2 58 . . 2 62 Cannon 106 | . . . . 11 95 Launcher 19 | . . 1 . 5 13 Special . | . . . . . . Kinetic 94 | 1 29 . . 2 62 Thermal 136 | 1 29 . . 11 95 Explosive 19 | . . 1 . 5 13 Electromagnetic . | . . . . . . Robot Hit Streak 24 | 2 16 . . 6 24 Robot Miss Streak 3 | . 3 1 . 1 3 Penetration Max . | . . . . . . Secondary Targets . | . . . . . . Shots Hit Robots 178 | 2 45 . . 13 118 Core Hits 107 | 1 15 4 . 27 60 Critical Kills 1 | . . . . . 1 Critical Parts Destroyed . | . . . . . . Critical Strikes 4 | . 3 . . . 1 Burn 3 | . 3 . . . . Meltdown 1 | . . . . . 1 Melee Attacks 3 | . . . . . 3 Impact . | . . . . . . Slashing 3 | . . . . . 3 Piercing . | . . . . . . Sneak Attacks . | . . . . . . Combat Hostiles . | . . . . . . Follow-up Attacks . | . . . . . . Damage Inflicted 5026 | 20 460 118 . 964 3464 Guns 1271 | 20 449 . . 6 796 Cannons 1636 | . . . . 160 1476 Explosions 2066 | . . 99 . 775 1192 Melee . | . . . . . . Ramming 53 | . 11 19 . 23 . Kinetic 993 | 8 183 . . 6 796 Thermal 1914 | 12 266 . . 160 1476 Explosive 2066 | . . 99 . 775 1192 Electromagnetic . | . . . . . . Impact . | . . . . . . Slashing . | . . . . . . Piercing . | . . . . . . Highest Corruption 2 | . . 2 2 2 1 Average Corruption 1 | . . 2 2 2 1 Corruption Purged . | . . . . . . Corruption Blocked . | . . . . . . Effects 28 | . . 4 12 6 6 Message Errors 5 | . . 1 2 1 1 Matter Fused 8 | . . . 4 1 3 Heat Flow Errors 3 | . . 1 1 1 . Energy Discharges 7 | . . 1 1 3 2 Data Loss (minor) 3 | . . . 3 . . Data Loss (major) 1 | . . . 1 . . Alerts 1 | . . 1 . . . Overload Shots . | . . . . . . Overflow Damage 52 | . . 11 . 33 8 Projectiles 6 | . . . . . 6 Explosions 46 | . . 11 . 33 2 Melee . | . . . . . . Knockbacks . | . . . . . . Impact . | . . . . . . Kinetic . | . . . . . . Secondary . | . . . . . . Self-Inflicted Damage 268 | . . 24 . 129 115 Shots 8 | . . 1 . 4 3 Rammed 8 | . 4 1 . 3 . Targets Rammed 10 | . 4 2 . 4 . Kicked . | . . . . . . Crushed 2 | . . 1 . 1 . Highest Temperature 249 | 30 173 181 147 225 249 Average Temperature 75 | 18 61 97 80 89 78 Received Heat Transfer 714 | . 117 . . 120 477 Effects 2 | . . . . . 2 Energy Bleed 1 | . . . . . 1 Interference 1 | . . . . . 1 Siege Activations . | . . . . . . Robots Corrupted . | . . . . . . Combat Hostiles . | . . . . . . Parts Fried . | . . . . . . Impact Corruptions . | . . . . . . Robots Melted 2 | . . . . . 2 Combat Hostiles 1 | . . . . . 1 Parts Melted 17 | . 5 . . . 12 Heat Transferred 4318 | 37 999 . . 333 2949 Parts Sabotaged . | . . . . . . Parts Stolen . | . . . . . . Parts Stripped . | . . . . . . Power Chain Reactions . | . . . . . . Alert | -11 -10 -10 -10 -9 -8 ------- Run | Yrd Mat Min Exi Min Mat Peak Influence 636 | 5 137 99 . 185 636 Initial 46 | . 3 . . . 46 Average 106 | . 29 94 . 134 193 Maximum Alert Level 2 | . . . . . 2 Low Security (%) 83 | 100 100 100 . 100 54 Level 1 13 | . . . . . 36 Level 2 3 | . . . . . 8 Level 3 . | . . . . . . Level 4 . | . . . . . . Level 5 . | . . . . . . High Security . | . . . . . . Max Security . | . . . . . . Squads Dispatched 7 | . 2 . . . 5 Investigation 2 | . 2 . . . . Extermination . | . . . . . . Reinforcement 4 | . . . . . 4 Assault . | . . . . . . Garrison 1 | . . . . . 1 Intercept . | . . . . . . Searches Triggered . | . . . . . . Construction Impeded 1 | . . . . . 1 Haulers Reinforced . | . . . . . . Active Scanning Responses . | . . . . . . Cargo Convoy Interrupts . | . . . . . . Stealth | -11 -10 -10 -10 -9 -8 --------- Run | Yrd Mat Min Exi Min Mat Distress Signals 3 | . 2 . . . 1 Communications Jammed . | . . . . . . Distress Signals . | . . . . . . Times Spotted 63 | . 5 3 . 28 27 Peak Tracking Total 20 | . 2 3 . 20 5 Tactical Retreats 2 | . 1 . . . 1 Traps | -11 -10 -10 -10 -9 -8 ------- Run | Yrd Mat Min Exi Min Mat Traps Triggered 4 | . 3 . . . 1 Indirectly . | . . . . . . Trap Hack Attempts . | . . . . . . Triggered . | . . . . . . Disarmed . | . . . . . . Reprogrammed . | . . . . . . Reused . | . . . . . . Traps Extracted . | . . . . . . Installed . | . . . . . . Triggered . | . . . . . . Machines | -11 -10 -10 -10 -9 -8 ---------- Run | Yrd Mat Min Exi Min Mat Machines Disabled 3 | . . 1 . . 2 Max in Single Turn 1 | . . 1 . . 1 Garrison Access 1 | . . . . . 1 Machines Repaired . | . . . . . . Machines Dismantled . | . . . . . . Machines Sabotaged . | . . . . . . Overloaded Fab Kills . | . . . . . . Hacking | -11 -10 -10 -10 -9 -8 --------- Run | Yrd Mat Min Exi Min Mat Machines Accessed 14 | . 8 . 1 . 5 Terminals 12 | . 8 . . . 4 Fabricators . | . . . . . . Repair Stations . | . . . . . . Recycling Units . | . . . . . . Scanalyzers . | . . . . . . Garrison Access 1 | . . . . . 1 Total Hacks 42 | . 29 . 1 . 12 Successful 29 | . 21 . 1 . 7 Failed 13 | . 8 . . . 5 Catastrophic . | . . . . . . Database Lockouts . | . . . . . . Manual 38 | . 26 . 1 . 11 Terminals 40 | . 29 . . . 11 Fabricators . | . . . . . . Repair Stations . | . . . . . . Recycling Units . | . . . . . . Scanalyzers . | . . . . . . Garrison Access 1 | . . . . . 1 Terminal Hacks 7 | . 6 . 1 . . Robot Analysis 3 | . 3 . . . . Alert Level 1 | . 1 . . . . Hauler Manifests 1 | . 1 . . . . Zone Layout 1 | . 1 . . . . Derelict Proto ID Bank 1 | . . . 1 . . Fabricator Hacks . | . . . . . . Repair Station Hacks . | . . . . . . Recycling Unit Hacks . | . . . . . . Scanalyzer . | . . . . . . Garrison Access Hacks 1 | . . . . . 1 Seal Access 1 | . . . . . 1 Unauthorized Hacks 21 | . 15 . . . 6 Terminals 21 | . 15 . . . 6 Track 1 | . 1 . . . . Botnet 12 | . 8 . . . 4 Skim 8 | . 6 . . . 2 Fabricators . | . . . . . . Repair Stations . | . . . . . . Recycling Units . | . . . . . . Scanalyzers . | . . . . . . Garrison Access . | . . . . . . Data Cores Recovered . | . . . . . . Used . | . . . . . . Hacking Detections 10 | . 8 . . . 2 Full Trace Events 1 | . 1 . . . . Feedback Events . | . . . . . . Feedback Blocked . | . . . . . . Robot Schematics Acquired . | . . . . . . Robots Built . | . . . . . . Authchips . | . . . . . . Time . | . . . . . . Total Robot Build Rating . | . . . . . . Part Schematics Acquired . | . . . . . . Parts Built . | . . . . . . Authchips . | . . . . . . Time . | . . . . . . Total Part Build Rating . | . . . . . . Parts Repaired . | . . . . . . Time . | . . . . . . Parts Recycled . | . . . . . . Recycled Matter . | . . . . . . Retrieved Matter . | . . . . . . Retrieved Components . | . . . . . . Parts Scanalyzed . | . . . . . . Part Schematics Acquired . | . . . . . . Parts Damaged . | . . . . . . Bothacking | -11 -10 -10 -10 -9 -8 ------------ Run | Yrd Mat Min Exi Min Mat Used RIF Installer . | . . . . . . Robots Hacked . | . . . . . . Non-combat . | . . . . . . Combat . | . . . . . . Robot Hacks Applied . | . . . . . . Relay Couplers Released . | . . . . . . Fabnet Peak Effective % . | . . . . . . Robots Rewired . | . . . . . . Allies Hacked . | . . . . . . Hacks Repelled . | . . . . . . Allies | -11 -10 -10 -10 -9 -8 -------- Run | Yrd Mat Min Exi Min Mat Total Allies . | . . . . . . Largest Group . | . . . . . . Highest-Rated Group . | . . . . . . Highest-Rated Ally . | . . . . . . Total Orders . | . . . . . . Ally Attacks . | . . . . . . Total Damage . | . . . . . . Kills . | . . . . . . Allies Corrupted . | . . . . . . Allies Melted . | . . . . . . Intel | -11 -10 -10 -10 -9 -8 ------- Run | Yrd Mat Min Exi Min Mat Robot Analysis Total 3 | . 3 . . . . Derelict Logs Recovered 1 | . . 1 . . . Drone Launches . | . . . . . . Drone Recoveries . | . . . . . . Exploration | -11 -10 -10 -10 -9 -8 ------------- Run | Yrd Mat Min Exi Min Mat Turns Passed 3989 | 77 1295 283 831 345 1158 Spaces Moved 2103 | 37 693 170 513 180 510 Core 2 | 2 . . . . . Treads 2101 | 35 693 170 513 180 510 Legs . | . . . . . . Wheels . | . . . . . . Hover . | . . . . . . Flight . | . . . . . . Fastest Speed 50 | 50 160 160 160 160 155 Average Speed 158 | 154 160 160 160 160 155 Slowest Speed 240 | 160 160 160 160 240 232 Overloaded Moves . | . . . . . . Propulsion Burnouts . | . . . . . . Robots Hopped . | . . . . . . Cave-ins Triggered . | . . . . . . Exploration Rate (%) 50 | 4 98 37 87 35 44 Regions Visited 5 Branch Regions 3 Pre-discovered Areas . | . . . . . . Known Exits Taken . | . . . . . . Unknown Exits Taken 5 | 1 1 1 1 1 . Scrap Searched . | . . . . . . Spaces Dug 5 | . . . . . 5 Terrain Destroyed 180 | . . 4 . 40 136 Melee 3 | . . . . . 3 Projectile 14 | . . . . . 14 AOE 163 | . . 4 . 40 119 Terrain Rammed . | . . . . . . Walls Destroyed . | . . . . . . Machines Disabled . | . . . . . . Actions | -11 -10 -10 -10 -9 -8 --------- Run | Yrd Mat Min Exi Min Mat Total 2530 | 52 828 178 528 215 729 Wait 168 | 1 71 . . 1 95 Move 2098 | 36 692 169 512 179 510 Hop . | . . . . . . Pick Up 36 | 7 10 . 6 1 12 Fast Attach 23 | 6 6 2 . 1 8 Attach 16 | 1 . . . 10 5 Detach 2 | . . . 1 1 . Swap 28 | . 5 2 1 3 17 Drop 32 | . 11 2 8 2 9 Fire 114 | 1 29 1 . 13 70 Melee 3 | . . . . . 3 Ram . | . . . . . . Kick . | . . . . . . Crush 10 | . 4 2 . 4 . Escape Stasis . | . . . . . . Rewire . | . . . . . . Trap . | . . . . . . Miscellaneous . | . . . . . . Route ------- -11/Scrapyard -10/Materials (discovered 5 exits: [*Mat x3] / [*Min x2]) -10/Mines (discovered 2 exits: [*Mat] / *Exi) -10/Exiles (discovered 2 exits: [*Min x2]) -9/Mines -8/Materials (discovered 3 exits: *Fac x3) History --------- Turn | Location | Event 32 | -11/Scrapyard | Discovered new exit (range 16) 78 | -11/Scrapyard | Entered Materials 286 | -10/Materials | Discovered new exit (range 13) 300 | -10/Materials | Build established: Mutant 513 | -10/Materials | Discovered new exit (range 12) 572 | -10/Materials | Discovered new exit (range 10) 691 | -10/Materials | Discovered new exit (range 11) 1108 | -10/Materials | Discovered new exit (range 11) 1192 | -10/Materials | Learned Storage stockpile data 1267 | -10/Materials | Learned location of 2 exits from Subcaves 1332 | -10/Materials | Learned location of 3 exits from Materials 1373 | -10/Materials | Entered Mines 1484 | -10/Mines | Found a damaged Exp. Sensor Array with a note attached 1489 | -10/Mines | Found Prototype Device 1489 | -10/Mines | Identified Exp. Sensor Array 1536 | -10/Mines | Discovered new exit (range 9) 1646 | -10/Mines | Deemed a non-threat by the Exiles lab entrance 1648 | -10/Mines | Discovered new exit (range 5) 1656 | -10/Mines | Entered Exiles 1679 | -10/Exiles | Discovered new exit (range 15) 1698 | -10/Exiles | Met 8R-AWN 1725 | -10/Exiles | Met EX-HEX 1768 | -10/Exiles | Met EX-BIN 1786 | -10/Exiles | Aligned with FarCom system 1788 | -10/Exiles | Given EX-Vault access code 1826 | -10/Exiles | Opened EX-Vault 1842 | -10/Exiles | Found XL Autogun Array 1874 | -10/Exiles | Warned to stay clear of 0b10 Research branches 1920 | -10/Exiles | Met EX-DEC 1972 | -10/Exiles | Visited The Gauntlet 2472 | -10/Exiles | Discovered new exit (range 10) 2487 | -10/Exiles | Left Exiles lab with XL Autogun Array 2487 | -10/Exiles | Entered Mines 2635 | -9/Mines | Assembled infested the area 2671 | -9/Mines | Core integrity fell below 50% 2687 | -9/Mines | Destroyed 11 combat bots 2708 | -9/Mines | A weapon hastily lodged in a ceiling crevice suddenly fell to the ground 2728 | -9/Mines | Lost 10 parts (2p5n1u2w) 2826 | -9/Mines | Discovered new exit (range 4) 2832 | -9/Mines | Entered Materials 2832 | -8/Materials | Evolved 4 slots: Propulsion x1, Utility x2, Weapon x1 2833 | -8/Materials | Identified exit to Factory 3426 | -8/Materials | Garrison activated, responded to threat 3605 | -8/Materials | Build established: Skirmisher 3963 | -8/Materials | Lost 3 parts (2n1u) 3974 | -8/Materials | Destroyed 7 combat bots 3990 | -8/Materials | Self-destructed Last Messages --------------- 03978_ U-05 Engineer lays Concrete. 03978_ U-05 Engineer builds a Wall. 03979_ U-05 Engineer lays Concrete. 03979_ Slug penetrates Wall. 03980_ U-05 Engineer builds a Wall. 03981_ K-01 Serf collects debris. 03982_ U-05 Engineer builds a Wall. 03982_ ALERT: Construction progress impeded, dispatching reinforcements to local area. 03983_ The unstable cave ceiling collapses. 03983_ Acquired 7 matter. 03983_ K-01 Serf collects debris. 03984_ U-05 Engineer lays Concrete. 03985_ The unstable cave ceiling collapses. 03985_ K-01 Serf collects debris. 03985_ U-05 Engineer lays Concrete. 03986_ U-05 Engineer builds a Wall. 03987_ R-06 Scavenger collects Lgt. Ion Engine. 03989_ K-01 Serf collects debris. 03990_ U-05 Engineer builds a Wall. Map ----- +----------------------------------------------------+ | ?????????????????????????????????????????????????? | | ?????????????????????????????????????????????????? | | ?????????????????????????????????????????????????? | | ?????????????????????????????????????????????????? | | ?????????????????????????????????????????????????? | | ?????????????????????????????????????????????????? | | ?????????????????????????????????????????????????? | | ?????????????????????????????????????????????????? | | ?????????????????????????????????????????????????? | | ?????????????????????????????????????????????????? | | ????????????????????????? ???????????????????????? | | ????????????????????????# ???????????????????????? | | ????????????????????????# ???????????????????????? | | ??????????????????# ???# ???????????????????????? | | ??????????????????# ???# ???????????????????????? | | ??????????????????# ??# ???????#???????????????? | | ??????????????????# ??# ??????w#???????????????? | | ?????????????????## #?# #?????[#???? ??????????? | | +#######?????#+### ## #????#%#???""??????????? | | ????? # #???# ### ""??????????? | | ?????? !!# #### = # """?????????? | | ???????? |H## # # ?????????? | | +#######???????????[ u#* # ## k# ""??????????? | | ?????????????????????##*% """?????????? | | ??????????????????????# = """ ""??????? | | ??????????????????????# @* [ ??????? | | ??????????????????????### |=%% #?????????????? | | ????????????????????????# !=#[! ###???????????? | | ????????????????????????#= # ! + ????? | | ????????????????????????# ###"####### #??????? | | ????????????????????????# #??##????????????????? | | ?????????#####??????????# #????????????????????? | | ?????????# #???????# #????????????????????? | | ?????????# """ #######? ########## ??????###/ | | ?????????# """ # # ! ????? | | ?????????# """ # #!=% ????? | | ?????????# # =%= ????? | | ?????????# """ # #%=%# ##########?????????? | | +????????# """ # [ #??????????????????? | | ########## """ # # ##?????????????????? | | ## # # + u# ###????????????????? | | ## """ # """ # # # #????????????????? | | ## """ # """ # # # ?????????????????? | | ## """ ]# """ # # # ##????????????????? | | ## !# #### # #????????????????? | | ## """ ####+######### # # #???????????????## | | ## """ + %%## #????????????????# | | ## """ ## # #????????????????# | | ## ## ! = #########?????????# | | ## ## %""" "" # #?????????# | +----------------------------------------------------+ Best States ------------- Heat Dissipation 45 Energy Generation 14 Energy Capacity 275 Matter Stores 300 Matter Capacity 300 Sight Range 16 Terrain Scan Density 10 Armor Coverage 225 Evasion (%) 40 Recoil Reduction 3 Offensive Hacking 10 Item Schematics ----------------- None Robot Schematics ------------------ None Fabricated ------------ Nothing Alien Tech Used ----------------- None Achievements -------------- None Challenges ------------ None Game ------ Seed ScrapoidAlloyMediator Manual? 0 Play Time 00:33:21 Cumulative 49.5 hours Start 2024.11.12 @ 22:40:33 End 2024.11.12 @ 23:12:03 Sessions 1 Manual Loads 0 Difficulty Rogue Special Mode None Game No. 45 Rogue 45 Adventurer 0 Explorer 0 Win Type - Total 2 Types 2/0/0/0/0/0/0/0/0 Lore% 23 Gallery% 36 Achievement% 41 Wizard Run 0 Options --------- Layout 1 ASCII 0 Keyboard 0 Movement Arrows Keybinds 0 Fullscreen 1 Font 24/Smallcaps Map View 50x35 Zoom Use 0% Tactical HUD 1 Map Filters NONE Filters NONE Steam 1 RUN: 4c95d584-871d-437e-bf2d-414a730f196b